bitfinex/quotes_BTCUSD_20250204
["timestamp","ask_amount","ask_price","bid_price","bid_amount"]
[1738696684755,0.61234611,100330.0,100310.0,0.149534]
[1738696684956,0.35549769,100330.0,100310.0,0.149534]
[1738696685176,0.35549769,100330.0,100320.0,0.149521]
[1738696685177,0.00662969,100330.0,100320.0,0.149521]
[1738696687944,0.15613769,100330.0,100310.0,0.65066106]
[1738696688106,0.15613769,100330.0,100310.0,0.45128806]
[1738696688318,0.00662969,100330.0,100310.0,0.45128806]
[1738696688656,0.00662969,100330.0,100310.0,0.65066306]
[1738696688881,0.149523,100320.0,100300.0,0.62855505]
[1738696689024,0.348885,100320.0,100300.0,0.73094011]
[1738696689230,0.348885,100320.0,100300.0,0.62855505]
[1738696689432,0.56484069,100330.0,100310.0,0.199381]
[1738696689609,0.66276808,100330.0,100310.0,0.149535]
[1738696689826,0.65276808,100330.0,100310.0,0.149535]
[1738696690058,0.56484069,100330.0,100300.0,0.47901505]
[1738696690263,0.15614869,100330.0,100310.0,0.548292]
[1738696690467,0.15614869,100330.0,100310.0,0.348911]
[1738696690710,0.35549469,100330.0,100310.0,0.548287]
[1738696690891,0.15625539,100330.0,100310.0,0.548286]
[1738696691300,0.00673639,100330.0,100320.0,0.149521]
[1738696691498,0.15624539,100330.0,100310.0,0.65067106]
[1738696691695,0.15624539,100330.0,100310.0,0.85004706]
[1738696691696,0.35558839,100330.0,100310.0,0.85004706]
[1738696691898,0.00673639,100330.0,100320.0,0.149521]
[1738696693759,0.50118076,100330.0,100310.0,0.149536]
[1738696693961,0.348892,100320.0,100300.0,0.62855605]
[1738696694166,0.548259,100320.0,100300.0,0.73094111]
[1738696694369,0.149536,100310.0,100290.0,0.348971]
[1738696694633,0.348922,100310.0,100290.0,0.45135606]
[1738696694862,0.49452237,100310.0,100290.0,0.548385]
[1738696695098,0.408753,100320.0,100300.0,0.149551]
[1738696695306,0.00673639,100330.0,100320.0,0.149521]
[1738696695522,0.00673639,100330.0,100320.0,0.25310219]
[1738696695726,0.00673639,100330.0,100320.0,0.25190606]
[1738696696144,0.00673639,100330.0,100320.0,0.23523939]
[1738696696573,0.00673639,100330.0,100320.0,0.13285433]
[1738696696907,0.00673639,100330.0,100320.0,0.31546844]
[1738696697306,0.00673639,100330.0,100320.0,0.30964205]
[1738696698935,0.00673639,100330.0,100320.0,0.45523042]
[1738696699141,0.00673639,100330.0,100320.0,0.229413]
[1738696702076,0.00673639,100330.0,100320.0,0.22963728]
[1738696702546,0.00673639,100330.0,100320.0,0.4554547]
[1738696703940,0.00673639,100330.0,100320.0,0.6284547]
[1738696704907,0.00673639,100330.0,100320.0,0.7105547]
[1738696705112,0.00673639,100330.0,100320.0,0.85614307]
[1738696705272,0.00673639,100330.0,100320.0,0.7105547]
[1738696705684,0.00673639,100330.0,100320.0,0.85614307]
[1738696705880,1e-07,100360.0,100340.0,0.2421]
[1738696706128,0.0001065,100370.0,100360.0,0.254561]
[1738696706331,5e-07,100370.0,100360.0,0.6481228]
[1738696706547,0.0001064,100380.0,100360.0,0.6481228]
[1738696706548,4e-07,100380.0,100370.0,0.231547]
[1738696706762,4e-07,100380.0,100370.0,0.33393206]
[1738696706921,4e-07,100380.0,100370.0,0.36810984]
[1738696707303,4e-07,100380.0,100370.0,0.51369821]
[1738696707511,4e-07,100380.0,100370.0,0.54041351]
[1738696707926,4e-07,100380.0,100370.0,0.62064256]
[1738696708617,4e-07,100380.0,100370.0,0.59392726]
[1738696708810,4e-07,100380.0,100370.0,0.62064256]
[1738696709256,0.065938,100400.0,100390.0,0.380817]
[1738696709257,0.046018,100400.0,100390.0,0.380817]
[1738696709459,0.046018,100400.0,100390.0,0.8010941]
[1738696709646,0.046018,100400.0,100390.0,0.81227188]
[1738696709846,0.046018,100400.0,100390.0,0.80855658]
[1738696710052,0.046018,100400.0,100390.0,0.83527188]
[1738696710254,0.046018,100400.0,100390.0,0.80855658]
[1738696710660,0.046018,100400.0,100390.0,0.50179043]
[1738696711243,0.046018,100400.0,100390.0,0.47761948]
[1738696711420,0.046018,100400.0,100390.0,0.39739043]
[1738696712675,0.046018,100400.0,100390.0,0.25180206]
[1738696712755,0.19542,100400.0,100380.0,0.547885]
[1738696712953,0.394627,100400.0,100380.0,0.45103206]
[1738696713176,0.046018,100400.0,100390.0,0.47881482]
[1738696713382,0.046018,100400.0,100390.0,0.47761948]
[1738696713560,0.046018,100400.0,100390.0,0.50061948]
[1738696714460,1e-06,100400.0,100390.0,0.87740785]
[1738696714673,1e-06,100400.0,100390.0,0.90730082]
[1738696715075,1e-06,100400.0,100390.0,0.78842775]
[1738696715248,1e-06,100400.0,100390.0,0.90412315]
[1738696715457,1e-06,100400.0,100390.0,0.91530093]
[1738696715659,1e-06,100400.0,100390.0,0.93399065]
[1738696716066,1e-06,100400.0,100390.0,0.90727535]
[1738696716508,0.0227388,100430.0,100420.0,0.1035]
[1738696716810,0.0227388,100430.0,100420.0,0.79332513]
[1738696717138,0.0227388,100430.0,100420.0,0.79891402]
[1738696717340,0.0227388,100430.0,100420.0,0.76660983]
[1738696717552,0.0227388,100430.0,100420.0,0.76102094]
[1738696717768,0.0227388,100430.0,100420.0,0.61102094]
[1738696718157,0.0227388,100430.0,100420.0,0.69124999]
[1738696721187,0.03889542,100430.0,100420.0,0.25175706]
[1738696721409,0.0227388,100430.0,100420.0,0.25175706]
[1738696721621,0.0227388,100430.0,100420.0,0.58774999]
[1738696721823,0.0227388,100430.0,100420.0,0.61074999]
[1738696722389,0.0227388,100430.0,100420.0,0.25175706]
[1738696722748,0.1720958,100430.0,100420.0,0.25175706]
[1738696722949,0.0227388,100430.0,100420.0,0.25175706]
[1738696723127,0.0227388,100430.0,100420.0,0.53052094]
[1738696723326,0.0227388,100430.0,100420.0,0.65182094]
[1738696724200,0.0227388,100430.0,100420.0,0.32785706]
[1738696724612,0.0227388,100430.0,100420.0,0.35085706]
[1738696724954,0.0227388,100430.0,100420.0,0.83684999]
[1738696725234,0.0227388,100430.0,100420.0,0.77570527]
[1738696725450,0.0227388,100430.0,100420.0,0.36994139]
[1738696725647,0.0227388,100430.0,100420.0,0.25175706]
[1738696726592,0.0228455,100430.0,100420.0,0.25175706]
[1738696726893,0.0228455,100430.0,100420.0,0.25171706]
[1738696728150,0.0228455,100430.0,100420.0,0.27471706]
[1738696729845,0.0228455,100430.0,100420.0,0.29380139]
[1738696730016,0.0228455,100430.0,100420.0,0.27471706]
[1738696730427,0.0228455,100430.0,100420.0,0.29458532]
[1738696730916,0.0228455,100430.0,100420.0,0.44458532]
[1738696731148,0.1388274,100440.0,100430.0,0.172357]
[1738696731349,0.1388274,100440.0,100430.0,0.27474206]
[1738696734380,0.1388274,100440.0,100430.0,0.25174206]
[1738696734784,0.3020991,100440.0,100420.0,0.348506]
[1738696734986,0.5347124,100440.0,100420.0,0.45090706]
[1738696735210,0.3355694,100440.0,100430.0,0.149357]
[1738696735464,0.5346984,100440.0,100420.0,0.65005506]
[1738696735615,0.5346984,100440.0,100430.0,0.149357]
[1738696735835,0.5844894,100440.0,100420.0,0.45089906]
[1738696736059,0.7338404,100440.0,100420.0,0.64965688]
[1738696736211,0.7338404,100440.0,100420.0,0.64965588]
[1738696736413,0.7338404,100440.0,100420.0,0.45049988]
[1738696736619,0.7338404,100440.0,100420.0,0.64965488]
[1738696736814,0.7338404,100440.0,100420.0,0.64965888]
[1738696737018,0.149357,100430.0,100420.0,0.149372]
[1738696737226,0.348506,100430.0,100420.0,0.149372]
[1738696737427,0.149357,100430.0,100410.0,0.62795205]
[1738696737608,0.149357,100430.0,100420.0,0.149372]
[1738696737807,0.547658,100430.0,100410.0,0.53116411]
[1738696738035,0.348504,100430.0,100410.0,0.73034011]
[1738696738235,0.348504,100430.0,100420.0,0.149372]
[1738696738434,0.348504,100430.0,100410.0,0.78014211]
[1738696738435,0.199147,100430.0,100410.0,0.78014211]
[1738696738640,0.149372,100420.0,100410.0,0.27940205]
[1738696738842,0.398347,100420.0,100400.0,0.348577]
[1738696739042,0.547726,100420.0,100400.0,0.65016006]
[1738696739243,0.547726,100420.0,100400.0,0.65015906]
[1738696739442,0.348551,100420.0,100400.0,0.84935506]
[1738696739643,0.547722,100420.0,100400.0,0.65015806]
[1738696739879,0.348551,100420.0,100410.0,0.149387]
[1738696740214,0.20583461,100440.0,100410.0,0.08022905]
[1738696740424,0.5845004,100440.0,100420.0,0.348525]
[1738696740630,0.149357,100430.0,100420.0,0.45090706]
[1738696740828,0.149357,100430.0,100420.0,0.199156]
[1738696741036,0.149372,100420.0,100410.0,0.22961405]
[1738696741243,0.149372,100420.0,100410.0,0.08022905]
[1738696741653,0.348583,100410.0,100390.0,0.42906812]
[1738696741858,0.547776,100410.0,100390.0,0.53145318]
[1738696742072,0.149402,100400.0,100390.0,0.18283818]
[1738696742282,0.2041803,100400.0,100390.0,0.00022407]
[1738696743143,0.149402,100400.0,100390.0,0.00022407]
[1738696745489,0.159402,100400.0,100390.0,0.00022407]
[1738696747948,0.3927857,100400.0,100390.0,0.00022407]
[1738696748159,0.48517076,100400.0,100390.0,0.00022407]
[1738696748791,0.33988706,100400.0,100390.0,0.00022407]
[1738696748943,0.44238178,100400.0,100390.0,0.00022407]
[1738696750620,0.33988706,100400.0,100390.0,0.00022407]
[1738696750884,0.227502,100400.0,100390.0,0.00022407]
[1738696751095,0.1992786,100420.0,100400.0,0.149402]
[1738696751295,0.547778,100410.0,100390.0,0.14964107]
[1738696751500,0.547778,100410.0,100390.0,0.14464107]
[1738696751699,0.547778,100410.0,100390.0,0.34386107]
[1738696751908,0.348586,100410.0,100390.0,0.348629]
[1738696752109,0.65021966,100420.0,100400.0,0.3486]
[1738696752313,0.149387,100410.0,100400.0,0.3486]
[1738696752492,0.66021966,100420.0,100400.0,0.547794]
[1738696752695,0.0001066,100420.0,100410.0,0.149387]
[1738696753269,0.0001066,100420.0,100400.0,0.348584]
[1738696753468,0.348591,100410.0,100390.0,0.42885005]
[1738696753681,0.348591,100410.0,100390.0,0.62806705]
[1738696753872,0.348588,100410.0,100390.0,0.62806705]
[1738696754114,0.348587,100410.0,100390.0,0.62806805]
[1738696754336,0.149402,100400.0,100380.0,0.54789]
[1738696754504,0.547827,100400.0,100380.0,0.65027806]
[1738696754699,0.36740778,100400.0,100380.0,0.84951506]
[1738696754899,0.1494,100410.0,100400.0,0.149402]
[1738696755127,0.348585,100410.0,100390.0,0.547849]
[1738696755328,0.348612,100400.0,100380.0,0.547894]
[1738696755533,0.348612,100400.0,100380.0,0.747132]
[1738696755731,0.54782,100400.0,100380.0,0.547894]
[1738696755906,0.34861,100400.0,100380.0,0.747132]
[1738696756433,0.149389,100410.0,100400.0,0.199199]
[1738696756629,0.5478276,100420.0,100400.0,0.547794]
[1738696756849,0.149387,100410.0,100400.0,0.199199]
[1738696757043,0.3486556,100420.0,100400.0,0.746987]
[1738696757193,0.5478246,100420.0,100400.0,0.547788]
[1738696757395,0.3486556,100420.0,100400.0,0.547788]
[1738696757639,0.149387,100410.0,100400.0,0.199198]
[1738696758052,0.149387,100410.0,100390.0,0.65021206]
[1738696758053,0.39349467,100410.0,100390.0,0.65021206]
[1738696758331,0.149409,100400.0,100380.0,0.547886]
[1738696758515,0.149402,100400.0,100390.0,0.14941]
[1738696759008,0.149402,100400.0,100390.0,0.149417]
[1738696759183,0.149402,100400.0,100380.0,0.84951006]
[1738696759388,0.348609,100400.0,100390.0,0.149417]
[1738696759599,0.59269667,100410.0,100390.0,0.34863]
[1738696759756,0.149402,100400.0,100390.0,0.348634]
[1738696760133,0.39578606,100400.0,100380.0,0.54789]
[1738696760311,0.547817,100400.0,100380.0,0.65027506]
[1738696760459,0.348609,100400.0,100390.0,0.149417]
[1738696760659,0.348609,100400.0,100370.0,0.70766305]
[1738696760660,0.149417,100390.0,100370.0,0.70766305]
[1738696760866,0.348646,100390.0,100380.0,0.149432]
[1738696761067,0.149417,100390.0,100380.0,0.149432]
[1738696761267,0.747059,100400.0,100380.0,0.34867]
[1738696761514,0.65033272,100400.0,100380.0,0.34867]
[1738696761752,0.0001066,100420.0,100400.0,0.149402]
[1738696761969,0.0001066,100420.0,100410.0,0.39705576]
[1738696762752,0.0001066,100420.0,100410.0,0.25177206]
[1738696763468,0.0001066,100420.0,100410.0,0.39705576]
[1738696763671,0.0001066,100420.0,100410.0,0.50028481]
[1738696763876,0.1494786,100420.0,100410.0,0.10238506]
[1738696764081,0.0001066,100420.0,100410.0,0.25177206]
[1738696764495,0.0001066,100420.0,100410.0,0.39705576]
[1738696765196,0.1494786,100420.0,100400.0,0.480875]
[1738696765311,0.3486476,100420.0,100400.0,0.65015106]
[1738696765514,0.149387,100410.0,100390.0,0.480319]
[1738696765714,0.149387,100410.0,100380.0,0.24588297]
[1738696765715,0.149402,100400.0,100380.0,0.19946307]
[1738696765960,0.348613,100400.0,100380.0,0.54812407]
[1738696766198,2.047821,100400.0,100380.0,0.74736007]
[1738696766343,0.34859,100410.0,100390.0,0.348631]
[1738696766528,0.149402,100400.0,100390.0,0.149417]
[1738696766721,0.149402,100400.0,100380.0,0.30184213]
[1738696767091,0.149417,100390.0,100380.0,0.00022407]
[1738696767462,0.149417,100390.0,100380.0,0.14965607]
[1738696767662,0.149417,100390.0,100380.0,0.00022407]
[1738696767864,0.149417,100390.0,100380.0,0.14965607]
[1738696768043,0.348624,100400.0,100380.0,0.34889207]
[1738696768268,0.348624,100400.0,100380.0,0.74736607]
[1738696768460,0.61910727,100400.0,100380.0,0.54812807]
[1738696768842,0.61910727,100400.0,100380.0,0.34889407]
[1738696769069,0.547831,100400.0,100380.0,0.34889407]
[1738696769269,0.547831,100400.0,100380.0,0.54812907]
[1738696769498,0.348621,100400.0,100380.0,0.54812807]
[1738696769701,0.396793,100410.0,100400.0,0.149402]
[1738696769856,0.595985,100410.0,100390.0,0.547849]
[1738696771299,0.595985,100410.0,100390.0,0.54785]
[1738696771979,0.348617,100400.0,100380.0,0.54811407]
[1738696772185,0.149417,100390.0,100380.0,0.00022407]
[1738696772594,0.149417,100390.0,100380.0,0.14965607]
[1738696773240,0.149417,100390.0,100380.0,0.00022407]
[1738696776927,0.0001067,100400.0,100390.0,0.149417]
[1738696777156,0.0001067,100400.0,100390.0,0.42008576]
[1738696777363,0.0001067,100400.0,100390.0,0.60023737]
[1738696777565,0.0001067,100400.0,100390.0,0.67713737]
[1738696779118,7e-07,100400.0,100390.0,0.67713737]
[1738696779322,7e-07,100400.0,100390.0,0.82242107]
[1738696779530,7e-07,100400.0,100390.0,0.67713737]
[1738696782229,7e-07,100400.0,100390.0,0.50413737]
[1738696782388,7e-07,100400.0,100390.0,0.47398576]
[1738696782789,0.1388274,100440.0,100430.0,0.255157]
[1738696782994,0.1388274,100440.0,100430.0,0.50282576]
[1738696783388,0.12082739,100440.0,100430.0,0.47982576]
[1738696784350,0.12082739,100440.0,100430.0,0.56005481]
[1738696784935,0.12082739,100440.0,100430.0,0.58305481]
[1738696785127,0.12082739,100440.0,100430.0,0.47982576]
[1738696786027,0.12082739,100440.0,100430.0,0.50282576]
[1738696786658,0.12082739,100440.0,100430.0,0.47982576]
[1738696787144,0.12082739,100440.0,100430.0,0.39702576]
[1738696787791,0.12082739,100440.0,100430.0,0.39698576]
[1738696789080,0.12082739,100440.0,100430.0,0.149317]
[1738696789420,0.46931739,100440.0,100420.0,0.348512]
[1738696789627,0.46931239,100440.0,100420.0,0.547666]
[1738696789840,0.46931239,100440.0,100430.0,0.149357]
[1738696790041,0.46931239,100440.0,100420.0,0.348512]
[1738696790245,0.73632789,100440.0,100420.0,0.348512]
[1738696790455,0.73632789,100440.0,100420.0,0.547672]
[1738696790784,0.98236389,100440.0,100420.0,0.348512]
[1738696791009,0.88561295,100440.0,100420.0,0.54767]
[1738696791185,0.88561295,100440.0,100420.0,0.547671]
[1738696791416,0.348505,100430.0,100410.0,0.62794405]
[1738696791550,0.547658,100430.0,100410.0,0.62795205]
[1738696791954,0.14936,100430.0,100420.0,0.149372]
[1738696792600,0.14936,100430.0,100410.0,0.82303575]
[1738696792821,0.348508,100430.0,100420.0,0.149372]
[1738696793229,0.12082739,100440.0,100430.0,0.149357]
[1738696793363,0.12082739,100440.0,100430.0,0.39702576]
[1738696795273,0.12082739,100440.0,100430.0,0.42002576]
[1738696795469,0.12082739,100440.0,100430.0,0.50025481]
[1738696795899,0.12082739,100440.0,100430.0,0.42002576]
[1738696797009,0.12082739,100440.0,100430.0,0.39702576]
[1738696797759,0.12082739,100440.0,100430.0,0.42002576]
[1738696797933,0.02126739,100440.0,100430.0,0.79553851]
[1738696798139,0.02126739,100440.0,100430.0,0.71530946]
[1738696798541,0.02126739,100440.0,100430.0,0.71553374]
[1738696798745,3.9e-07,100440.0,100430.0,0.79523374]
[1738696799314,3.9e-07,100440.0,100430.0,0.85990196]
[1738696799673,3.9e-07,100440.0,100430.0,0.64995004]
[1738696800431,3.9e-07,100440.0,100430.0,0.65959179]
[1738696800881,3.9e-07,100440.0,100430.0,0.50959179]
[1738696801082,3.9e-07,100440.0,100430.0,0.67992759]
[1738696802236,3.9e-07,100440.0,100430.0,0.57722759]
[1738696802366,3.9e-07,100440.0,100430.0,0.42722759]
[1738696803633,3.9e-07,100440.0,100430.0,0.39725004]
[1738696806622,3.9e-07,100440.0,100430.0,0.25196634]
[1738696806821,0.14934239,100440.0,100430.0,0.25196634]
[1738696807021,0.14934239,100440.0,100430.0,0.00022428]
[1738696808460,0.348517,100430.0,100410.0,0.42363874]
[1738696808664,0.348517,100430.0,100410.0,0.7252008]
[1738696808987,0.348517,100430.0,100400.0,0.348581]
[1738696808988,0.348551,100420.0,100400.0,0.348581]
[1738696809188,0.547721,100420.0,100400.0,0.65016106]
[1738696809392,0.348551,100420.0,100400.0,0.65016306]
[1738696809569,0.348551,100420.0,100400.0,0.348596]
[1738696809780,0.149387,100410.0,100400.0,0.149398]
[1738696809952,0.547724,100420.0,100400.0,0.348598]
[1738696809953,0.547725,100420.0,100400.0,0.348598]
[1738696810153,0.149387,100410.0,100400.0,0.149398]
[1738696810355,0.348574,100410.0,100390.0,0.34883907]
[1738696810557,0.547764,100410.0,100390.0,0.54805507]
[1738696810785,0.348574,100410.0,100390.0,0.54805507]
[1738696810959,0.45350242,100420.0,100400.0,0.547792]
[1738696811196,0.45350242,100420.0,100400.0,0.348594]
[1738696811393,0.149387,100410.0,100390.0,0.59650683]
[1738696811595,0.348571,100410.0,100390.0,0.65043413]
[1738696811834,0.149402,100400.0,100390.0,0.00022407]
[1738696812233,0.15435542,100430.0,100410.0,0.348568]
[1738696812553,0.149375,100420.0,100400.0,0.4938677]
[1738696812845,0.149387,100410.0,100390.0,0.54804907]
[1738696813072,0.348577,100410.0,100390.0,0.45122113]
[1738696813338,0.398381,100410.0,100390.0,0.00022407]
[1738696813510,0.149402,100400.0,100390.0,0.14964107]
[1738696813740,0.547781,100410.0,100390.0,0.14964107]
[1738696813963,0.547781,100410.0,100390.0,0.34886307]
[1738696814201,0.149402,100400.0,100390.0,0.00022407]
[1738696814430,0.01854929,100400.0,100390.0,0.14964107]
[1738696815361,0.199184,100410.0,100390.0,0.00022407]
[1738696815542,0.10238506,100410.0,100400.0,0.08022905]
[1738696815848,0.02965542,100420.0,100410.0,0.149387]
[1738696816400,0.02965542,100420.0,100410.0,0.2946707]
[1738696816604,0.02965542,100420.0,100410.0,0.149387]
[1738696816803,0.22671242,100430.0,100410.0,0.547736]
[1738696817003,0.42585542,100430.0,100410.0,0.547736]
[1738696817228,0.22671242,100430.0,100420.0,0.149372]
[1738696817869,0.3051457,100430.0,100420.0,0.149372]
[1738696818071,0.22671242,100430.0,100420.0,0.149372]
[1738696818281,0.07735542,100430.0,100420.0,0.149372]
[1738696818905,0.22671242,100430.0,100420.0,0.149372]
[1738696819109,0.02965542,100430.0,100420.0,0.22960105]
[1738696819428,0.02965542,100430.0,100420.0,0.37488475]
[1738696819565,0.02965542,100430.0,100420.0,0.149372]
[1738696819769,0.17899881,100440.0,100420.0,0.149372]
[1738696820117,0.17899881,100440.0,100430.0,0.149357]
[1738696820336,0.02965581,100440.0,100430.0,0.149357]
[1738696820473,0.17899781,100440.0,100430.0,0.149357]
[1738696821212,0.14934239,100440.0,100430.0,0.149357]
[1738696821613,3.9e-07,100440.0,100430.0,0.149357]
[1738696821975,3.9e-07,100440.0,100430.0,0.47725481]
[1738696823819,3.9e-07,100440.0,100430.0,0.42710457]
[1738696824023,3.9e-07,100440.0,100430.0,0.39702576]
[1738696824430,3.9e-07,100440.0,100430.0,0.2946407]
[1738696825300,3.9e-07,100440.0,100430.0,0.149357]
[1738696825483,0.34846639,100440.0,100420.0,0.746835]
[1738696825688,0.42317599,100440.0,100430.0,0.149357]
[1738696825891,0.42317599,100440.0,100420.0,0.547677]
[1738696826090,0.62231099,100440.0,100420.0,0.348522]
[1738696826347,0.64999945,100440.0,100420.0,0.348527]
[1738696826532,0.64999345,100440.0,100420.0,0.348524]
[1738696826744,3.9e-07,100440.0,100430.0,0.149357]
[1738696826945,3.9e-07,100440.0,100430.0,0.39702576]
[1738696827367,3.9e-07,100440.0,100430.0,0.2946407]
[1738696827507,3.9e-07,100440.0,100430.0,0.149357]
[1738696829508,0.14934239,100440.0,100420.0,0.547672]
[1738696829709,0.34846639,100440.0,100420.0,0.547672]
[1738696829912,3.9e-07,100440.0,100430.0,0.149357]
[1738696830510,0.34846639,100440.0,100420.0,0.547672]
[1738696830827,0.34846639,100440.0,100430.0,0.149357]
[1738696830960,0.14934239,100440.0,100430.0,0.149357]
[1738696831395,0.14934239,100440.0,100420.0,0.547672]
[1738696831556,0.34847039,100440.0,100420.0,0.54768]
[1738696831766,0.149365,100430.0,100410.0,0.398346]
[1738696832102,0.348514,100430.0,100420.0,0.149372]
[1738696832267,0.15028506,100430.0,100390.0,0.35453542]
[1738696832471,0.149381,100420.0,100410.0,0.149387]
[1738696832660,0.36709909,100420.0,100400.0,0.27942105]
[1738696832871,0.36709909,100420.0,100400.0,0.62801205]
[1738696833076,0.149387,100410.0,100400.0,0.22963105]
[1738696833271,0.46948815,100420.0,100400.0,0.42883205]
[1738696833598,0.36709509,100420.0,100400.0,0.62803005]
[1738696834047,0.61012571,100420.0,100400.0,0.62803005]
[1738696834389,0.06241471,100420.0,100410.0,0.149387]
[1738696834612,0.21178671,100420.0,100410.0,0.14961128]
[1738696835198,0.149372,100420.0,100410.0,0.00022428]
[1738696835410,0.07755542,100430.0,100420.0,0.149372]
[1738696835611,0.42606042,100430.0,100410.0,0.54794928]
[1738696836022,0.62520842,100430.0,100410.0,0.54794928]
[1738696836151,0.17901081,100440.0,100420.0,0.149372]
[1738696836355,0.37814381,100440.0,100420.0,0.348531]
[1738696836553,0.149357,100430.0,100410.0,0.54794128]
[1738696836758,0.149362,100430.0,100410.0,0.39856628]
[1738696836962,0.149362,100430.0,100410.0,0.54793928]
[1738696837159,0.348505,100430.0,100410.0,0.54793928]
[1738696837359,0.547656,100430.0,100410.0,0.34876728]
[1738696837634,0.149372,100420.0,100410.0,0.00022428]
[1738696837829,0.24453228,100460.0,100450.0,0.05880319]
[1738696838128,0.24453228,100460.0,100450.0,0.00880319]
[1738696838129,2.14151404,100460.0,100450.0,0.00880319]
[1738696838428,2.25546197,100460.0,100450.0,0.00880319]
[1738696838773,2.25546197,100460.0,100420.0,0.08022905]
[1738696838774,0.547621,100440.0,100420.0,0.08022905]
[1738696839083,0.348455,100450.0,100430.0,0.149355]
[1738696839272,0.64995406,100450.0,100430.0,0.149355]
[1738696839476,0.65264912,100460.0,100440.0,0.149342]
[1738696839668,0.0935464,100460.0,100450.0,0.149328]
[1738696839912,0.0055696,100460.0,100450.0,0.179195]
[1738696840168,0.0055696,100460.0,100450.0,0.44686376]
[1738696840421,0.0045696,100460.0,100450.0,0.44686376]
[1738696841234,0.0045696,100460.0,100450.0,0.30158006]
[1738696841379,0.0045696,100460.0,100450.0,0.44686376]
[1738696842307,0.0045696,100460.0,100450.0,0.57399281]
[1738696842503,0.0045696,100460.0,100450.0,0.67599281]
[1738696843050,0.00447983,100460.0,100450.0,0.67599281]
[1738696843588,0.001,100470.0,100460.0,0.294113]
[1738696843787,0.001,100470.0,100460.0,0.63996935]
[1738696846568,0.001,100470.0,100460.0,0.7201984]
[1738696847341,0.0006597,100490.0,100480.0,0.1466]
[1738696847638,0.00109258,100510.0,100500.0,0.445853]
[1738696847639,7e-07,100510.0,100500.0,0.445853]
[1738696847860,7e-07,100510.0,100500.0,0.85224816]
[1738696848064,7e-07,100510.0,100500.0,0.87524816]
[1738696848266,7e-07,100510.0,100500.0,0.72996446]
[1738696848443,7e-07,100510.0,100500.0,0.91550104]
[1738696848687,7e-07,100510.0,100500.0,0.71996446]
[1738696849073,7e-07,100510.0,100500.0,0.73278317]
[1738696849272,0.00138054,100530.0,100510.0,0.437038]
[1738696849474,0.00138054,100530.0,100520.0,0.64426976]
[1738696849687,0.00138054,100530.0,100520.0,0.63307646]
[1738696849888,0.00138054,100530.0,100520.0,0.49779276]
[1738696850220,0.00138054,100530.0,100520.0,0.48779276]
[1738696850555,0.00138054,100530.0,100520.0,0.49779276]
[1738696850760,0.00138054,100530.0,100520.0,0.51123546]
[1738696852850,0.00138054,100530.0,100520.0,0.59146451]
[1738696853047,0.00138054,100530.0,100520.0,0.73674821]
[1738696853314,0.00138054,100530.0,100520.0,0.90974821]
[1738696854448,5.4e-07,100530.0,100520.0,0.95714821]
[1738696854659,5.4e-07,100530.0,100520.0,0.97577301]
[1738696855041,0.0134549,100550.0,100530.0,0.4108175]
[1738696855243,0.0134549,100550.0,100530.0,0.59276535]
[1738696855885,7e-07,100540.0,100530.0,0.97600427]
[1738696856095,7e-07,100540.0,100530.0,0.95654905]
[1738696856327,6e-07,100550.0,100540.0,0.169194]
[1738696856530,0.00024469,100560.0,100550.0,0.425179]
[1738696856763,6.9e-07,100560.0,100550.0,0.73179046]
[1738696857192,0.0001068,100570.0,100560.0,0.319164]
[1738696857193,4.9e-07,100570.0,100560.0,0.319164]
[1738696857366,4.9e-07,100570.0,100560.0,0.90965622]
[1738696857567,4.9e-07,100570.0,100560.0,0.87827168]
[1738696857948,4.9e-07,100570.0,100560.0,0.90965622]
[1738696858149,4.9e-07,100570.0,100560.0,1.00784381]
[1738696858510,4.9e-07,100570.0,100560.0,0.95700405]
[1738696860097,0.101015,100600.0,100590.0,0.02]
[1738696860307,0.101015,100600.0,100590.0,0.67408147]
[1738696860511,0.101015,100600.0,100590.0,0.68633146]
[1738696861339,0.101015,100600.0,100590.0,0.66333146]
[1738696861546,0.101015,100600.0,100590.0,0.74356051]
[1738696861745,0.101015,100600.0,100590.0,0.96124421]
[1738696862129,0.0034866,100610.0,100600.0,0.192105]
[1738696862260,6e-07,100610.0,100600.0,0.81394979]
[1738696862473,6e-07,100610.0,100600.0,0.81275746]
[1738696862675,7.77e-05,100620.0,100610.0,0.02]
[1738696862879,0.016673,100630.0,100620.0,0.02]
[1738696863148,0.016673,100630.0,100620.0,0.41674376]
[1738696863284,0.016673,100630.0,100620.0,0.49697281]
[1738696863683,0.016673,100630.0,100620.0,0.51997281]
[1738696863883,0.016673,100630.0,100620.0,0.41674376]
[1738696864185,0.016673,100630.0,100620.0,0.69317281]
[1738696864311,0.0011068,100640.0,100630.0,0.4873437]
[1738696864554,0.0011068,100640.0,100630.0,0.73501246]
[1738696864711,0.0011068,100640.0,100630.0,0.58972876]
[1738696865720,0.0132402,100640.0,100630.0,0.56672876]
[1738696865923,0.0132402,100640.0,100630.0,0.25144506]
[1738696866150,0.0132402,100640.0,100630.0,0.26144506]
[1738696866446,0.0132402,100640.0,100630.0,0.25144506]
[1738696866645,0.0132402,100640.0,100630.0,0.27144506]
[1738696870313,0.0132402,100640.0,100630.0,0.41672876]
[1738696870531,0.0132402,100640.0,100630.0,0.27144506]
[1738696870748,0.0132402,100640.0,100630.0,0.25144506]
[1738696870950,0.0132402,100640.0,100630.0,0.26144506]
[1738696871153,0.0132402,100640.0,100630.0,0.41672876]
[1738696871370,0.0132402,100640.0,100630.0,0.27144506]
[1738696872656,0.0132402,100640.0,100630.0,0.42144506]
[1738696872857,0.0132402,100640.0,100630.0,0.56672876]
[1738696873058,0.0132402,100640.0,100630.0,0.67292876]
[1738696873281,0.0004502,100660.0,100650.0,0.169031]
[1738696873639,0.0004502,100660.0,100650.0,0.27141606]
[1738696877509,0.0004502,100660.0,100650.0,0.49692881]
[1738696878905,0.0004502,100660.0,100650.0,0.41669976]
[1738696879105,0.0004502,100660.0,100650.0,0.26141606]
[1738696879337,0.0004502,100660.0,100650.0,0.27141606]
[1738696879541,0.0004502,100660.0,100650.0,0.26141606]
[1738696880091,0.0004502,100660.0,100650.0,0.27141606]
[1738696880445,0.0004502,100660.0,100650.0,0.25141606]
[1738696880668,0.0004502,100660.0,100650.0,0.149031]
[1738696881299,0.3481622,100660.0,100640.0,0.347748]
[1738696881468,0.41738436,100660.0,100640.0,0.22926605]
[1738696881670,0.149035,100650.0,100630.0,0.347794]
[1738696881905,0.149035,100650.0,100640.0,0.08022905]
[1738696882094,0.18288506,100650.0,100620.0,0.08022905]